Cogmind - Beta 13 @@@ ROGUE MODE // 2024.04.27 @ 22:46:53 Player: Ivanna Dostya Result: Self-destructed Performance ------------- Evolutions (3) 1500 Regions Visited (8) 1600 Robots Destroyed (77) 385 Value Destroyed (2361) 2361 Prototype IDs (23) 460 Alien Tech Used (0) 0 Bonus (321) 321 TOTAL SCORE: 6627 Bonus ------- High Alert Combat Kills 21 Aligned with FarCom 300 Cogmind --------- Core Integrity 442/700 Matter 260/300 Energy 240/240 System Corruption 5% Temperature Warning (352) Movement Treading (243) Ox1 Location -7/Factory Parts ------- > --- POWER (1) -------- Nuclear Core > --- PROPULSION (4) --- Light Treads Light Treads Armored Treads > --- UTILITY (6) ------ High-capacity Storage Unit Advanced Visual Processing Unit 0b10 Alert Chip Advanced Targeting Computer Reactive Plating Hacking Suite > --- WEAPON (2) ------- Gatling Laser Flak Gun (fused) > --- INVENTORY (20) --- Deuterium Engine Deuterium Engine Light Nuclear Core Improved Deuterium Engine Carbon-fiber Leg Carbon-fiber Leg Improved Titanium Leg Compact Wheel Improved Heat Sink High-capacity Matter Pod (200) Improved Signal Interpreter Improved Terrain Scanner Improved Light Armor Plating System Shield Field Laser Heavy Laser Heavy Laser Gauss Rifle Missile Launcher Heavy Mace Peak State ------------ > --- POWER ------------ Nuclear Core > --- PROPULSION ------- Armored Treads Medium Treads Carbon-fiber Leg Improved Titanium Leg > --- UTILITY ---------- High-capacity Storage Unit Advanced Visual Processing Unit 0b10 Alert Chip Advanced Targeting Computer Reactive Plating Hacking Suite > --- WEAPON ----------- Gatling Laser Flak Gun > --- INVENTORY -------- Deuterium Engine Deuterium Engine Light Nuclear Core Improved Deuterium Engine Carbon-fiber Leg Compact Wheel Improved Heat Sink High-capacity Matter Pod Improved Signal Interpreter Improved Terrain Scanner System Shield Field Laser Heavy Laser Heavy Laser Gauss Rifle Missile Launcher Heavy Mace [Rating: 49] Favorites ----------- Power Light Nuclear Core Engine Deuterium Engine Power Core Light Nuclear Core Propulsion Light Treads Treads Light Treads Leg Carbon-fiber Leg Flight Unit Flight Unit Utility Advanced Targeting Computer Device Improved Terrain Scanner Storage High-capacity Storage Unit Processor Advanced Targeting Computer Hackware Hacking Suite Protection Hardened Medium Armor Plating Weapon Particle Gun Energy Gun Particle Gun Ballistic Gun Heavy Assault Rifle Launcher Rocket Launcher Impact Weapon Heavy Mace Build | -11 -10 -10 -9 -9 -9 -8 -8 -7 ------- Run | Yrd Mat Min Mat Min Exi Min Mat Fac Slots Evolved 6 | . . . 2 . . . 2 2 Power . | . . . . . . . . . Propulsion 2 | . . . 1 . . . . 1 Utility 4 | . . . 1 . . . 2 1 Weapon . | . . . . . . . . . Parts Attached 59 | 8 . 6 15 1 . 2 14 13 Power 7 | 1 . 1 2 . . 1 1 1 Engine 3 | 1 . . 1 . . . 1 . Core 4 | . . 1 1 . . 1 . 1 Reactor . | . . . . . . . . . Propulsion 21 | 2 . 3 6 . . 1 3 6 Treads 11 | . . 2 2 . . . 3 4 Leg 9 | 2 . 1 3 . . 1 . 2 Wheel . | . . . . . . . . . Hover . | . . . . . . . . . Flight 1 | . . . 1 . . . . . Utility 15 | 3 . . 5 . . . 5 2 Device 3 | 2 . . 1 . . . . . Storage 2 | 1 . . 1 . . . . . Processor 4 | . . . 2 . . . 2 . Hackware 1 | . . . . . . . . 1 Protection 5 | . . . 1 . . . 3 1 Artifact . | . . . . . . . . . Weapon 16 | 2 . 2 2 1 . . 5 4 Energy Gun 6 | . . 1 2 . . . 2 1 Energy Cannon . | . . . . . . . . . Ballistic Gun 7 | 2 . . . 1 . . 1 3 Ballistic Cannon . | . . . . . . . . . Launcher 1 | . . . . . . . 1 . Special Weapon . | . . . . . . . . . Impact Weapon 2 | . . 1 . . . . 1 . Slashing Weapon . | . . . . . . . . . Piercing Weapon . | . . . . . . . . . Special Melee Weapon . | . . . . . . . . . Unidentified Prototypes . | . . . . . . . . . Parts Lost 12 | . . . 6 . . . 2 4 Power . | . . . . . . . . . Propulsion 8 | . . . 4 . . . 1 3 Utility 2 | . . . . . . . 1 1 Weapon 2 | . . . 2 . . . . . Highest Loss Streak 2 | . . . 2 . . . 2 1 To Critical Strikes . | . . . . . . . . . Average Slot Usage (%) 96 | . 100 100 91 88 88 98 99 99 Engine 4 | . 14 4 5 . . . 8 . Core 5 | . . 9 5 11 11 11 . 6 Treads 21 | . . 25 12 22 22 22 22 26 Leg 5 | . 28 2 13 . . 9 4 3 Device 2 | . 14 14 3 . . . . . Storage 9 | . 14 14 11 11 11 11 9 7 Processor 20 | . . . 17 22 22 22 27 23 Hackware 1 | . . . . . . . . 7 Protection 4 | . . . . . . . 8 7 Energy Gun 6 | . . 1 18 11 11 11 5 2 Ballistic Gun 10 | . 28 24 . 11 11 11 9 9 Impact Weapon 1 | . . 2 . . . . 2 2 Naked Turns . | . . . . . . . . . Heaviest Build 65 | 14 14 17 57 51 51 51 64 65 Greatest Support 88 | 20 20 40 40 40 40 40 60 88 Greatest Overweight (x) 11 | 3 . 1 11 1 1 3 1 1 Average Overweight (x) . | . . . 1 1 1 1 . . Largest Inventory Capacity 20 | 8 8 8 20 20 20 20 20 20 Average Capacity 17 | 7 8 8 15 20 20 20 20 20 Most Carried 20 | 6 6 8 15 15 16 17 20 20 Average Carried 15 | 3 6 7 8 13 15 16 19 19 Final Capacity 20 | 8 8 8 20 20 20 20 20 20 Final Carried 20 | 6 6 8 15 15 16 17 20 20 Class Distribution -------------------- 40% | Scavenger-Mutant 18% | Mutant 18% | Scavenger-Skirmisher 16% | Scavenger-Assassin 5% | Skirmisher Dominant Class ---------------- Mutant | -10/Materials Mutant | -10/Mines Scavenger-Mutant | -9/Materials Scavenger-Mutant | -9/Mines Scavenger-Mutant | -9/Exiles Scavenger-Mutant | -8/Mines Scavenger-Skirmisher | -8/Materials Scavenger-Assassin | -7/Factory Resources | -11 -10 -10 -9 -9 -9 -8 -8 -7 ----------- Run | Yrd Mat Min Mat Min Exi Min Mat Fac Matter Collected 1356 | 187 . 241 165 10 . 12 367 374 Remotely . | . . . . . . . . . Salvage Created 2318 | 82 . 277 467 . . 43 748 701 Parts 150 | 4 . 12 44 . . 3 39 48 Haulers Intercepted 2 | . . . . . . . 2 . Recyclers Shooed 2 | . . . 1 . . . 1 . Parts Field Recycled . | . . . . . . . . . Retrieved Matter . | . . . . . . . . . Parts Self-Destructed . | . . . . . . . . . Prevented . | . . . . . . . . . Kills | -11 -10 -10 -9 -9 -9 -8 -8 -7 ------- Run | Yrd Mat Min Mat Min Exi Min Mat Fac Combat Hostiles Destroyed 58 | . . 6 17 . . 1 15 19 Melee 3 | . . . 2 . . . 1 . Guns 44 | . . 6 15 . . 1 4 18 AOE 10 | . . . . . . . 10 . Classes Destroyed 12 | 2 . 1 3 . . 1 4 1 Worker 2 | . . . . . . . 1 1 Tunneler 1 | 1 . . . . . . . . Hauler 2 | . . . . . . . 2 . Recycler 5 | 1 . . 1 . . . 3 . Operator 2 | . . . . . . . 2 . Watcher 7 | . . . 2 . . . 3 2 Swarmer 20 | . . . 11 . . . 3 6 Grunt 25 | . . 6 3 . . . 8 8 Sentry 6 | . . . 3 . . . 1 2 Specialist 2 | . . . . . . . 2 . Hunter 3 | . . . . . . 1 1 1 Programmer 2 | . . . . . . . . 2 Best Kill Streak 17 | 2 . 3 11 . . 1 17 5 Combat Bots Only 12 | . . 3 9 . . 1 12 3 Max Kills in Single Turn 3 | 1 . 1 2 . . 1 3 2 Gunslinging 1 | . . . . . . . . 1 Exploded 2 | . . . . . . . 2 . Melee 1 | . . . 1 . . . 1 . Uniques/NPCs Destroyed . | . . . . . . . . . Combat | -11 -10 -10 -9 -9 -9 -8 -8 -7 -------- Run | Yrd Mat Min Mat Min Exi Min Mat Fac Hostile Shots Fired 432 | . 9 42 94 . . 2 87 198 Missed 133 | . 5 10 22 . . 2 33 61 Damage Taken 3583 | . 38 424 775 . . . 676 1670 Core 584 | . . 65 147 . . . 114 258 Absorbed by Shields . | . . . . . . . . . Ignored by Resistances 87 | . . . . . . . . 87 Core Remaining (%) 79 | 100 . 74 . . . 63 79 . Volleys Fired 161 | 6 2 23 39 . . 2 43 46 Largest 2 | 2 2 2 2 . . 2 2 2 Hottest 140 | 40 40 40 140 . . 88 88 108 Shots Fired 293 | 12 4 46 67 . . 4 73 87 Gun 282 | 12 4 46 67 . . 4 62 87 Cannon . | . . . . . . . . . Launcher 11 | . . . . . . . 11 . Special . | . . . . . . . . . Kinetic 172 | 12 4 46 . . . 2 41 67 Thermal 110 | . . . 67 . . 2 21 20 Explosive 11 | . . . . . . . 11 . Electromagnetic . | . . . . . . . . . Robot Hit Streak 12 | 5 2 11 8 . . 5 12 12 Robot Miss Streak 6 | 2 1 2 3 . . . 3 6 Penetration Max . | . . . . . . . . . Secondary Targets 8 | . . 2 2 . . . . 4 Max Gunslinging Chain 1 | . . 1 1 . . . . 1 Shots Hit Robots 220 | 8 2 38 39 . . 3 47 83 Core Hits 164 | 3 2 18 22 . . 3 43 73 Critical Kills . | . . . . . . . . . Critical Parts Destroyed 1 | . . . . . . . 1 . Critical Strikes 2 | . . . 1 . . . 1 . Burn 1 | . . . 1 . . . . . Destroy 1 | . . . . . . . 1 . Melee Attacks 17 | . . . . . . . 7 10 Impact 17 | . . . . . . . 7 10 Slashing . | . . . . . . . . . Piercing . | . . . . . . . . . Sneak Attacks . | . . . . . . . . . Combat Hostiles . | . . . . . . . . . Follow-up Attacks . | . . . . . . . . . Damage Inflicted 5301 | 100 36 392 727 . . 38 2161 1847 Guns 3364 | 100 36 379 718 . . 38 573 1520 Cannons . | . . . . . . . . . Explosions 1413 | . . . . . . . 1413 . Melee 458 | . . . . . . . 154 304 Ramming 66 | . . 13 9 . . . 21 23 Kinetic 1983 | 100 36 379 . . . 9 404 1055 Thermal 1381 | . . . 718 . . 29 169 465 Explosive 1413 | . . . . . . . 1413 . Electromagnetic . | . . . . . . . . . Impact 458 | . . . . . . . 154 304 Slashing . | . . . . . . . . . Piercing . | . . . . . . . . . Highest Corruption 5 | . . . . . . . . 5 Average Corruption 3 | . . . . . . . . 3 Corruption Purged . | . . . . . . . . . Corruption Blocked . | . . . . . . . . . Effects 13 | . . . . . . . . 13 Message Errors 4 | . . . . . . . . 4 Matter Fused 2 | . . . . . . . . 2 Energy Discharges 1 | . . . . . . . . 1 Parts Fused 1 | . . . . . . . . 1 Data Loss (minor) 2 | . . . . . . . . 2 Misfires 2 | . . . . . . . . 2 Alerts 1 | . . . . . . . . 1 Overload Shots . | . . . . . . . . . Overflow Damage 144 | . . . . . . . 46 98 Projectiles . | . . . . . . . . . Explosions 46 | . . . . . . . 46 . Melee 98 | . . . . . . . . 98 Knockbacks 2 | . . . . . . . . 2 Impact 2 | . . . . . . . . 2 Kinetic . | . . . . . . . . . Secondary . | . . . . . . . . . Self-Inflicted Damage 23 | . . . . . . . 23 . Shots 1 | . . . . . . . 1 . Rammed 14 | . . 6 2 . . . 5 1 Targets Rammed 19 | . . 6 5 . . 1 6 1 Kicked 2 | . . . 1 . . 1 . . Crushed 3 | . . . 2 . . . 1 . Highest Temperature 381 | . . 27 381 . . 48 192 352 Average Temperature 102 | . . 8 154 . . 25 47 98 Received Heat Transfer 801 | . . 243 177 . . . 117 264 Effects 5 | . . . 4 . . . . 1 Shutdowns 1 | . . . . . . . . 1 Interference 3 | . . . 3 . . . . . Short Circuit 1 | . . . 1 . . . . . Siege Activations . | . . . . . . . . . Robots Corrupted . | . . . . . . . . . Combat Hostiles . | . . . . . . . . . Parts Fried 4 | . . . . . . . . 4 Impact Corruptions 6 | . . . . . . . . 6 Robots Melted . | . . . . . . . . . Combat Hostiles . | . . . . . . . . . Parts Melted 3 | . . . 2 . . . . 1 Heat Transferred 3146 | . . . 1665 . . 74 407 1000 Parts Sabotaged . | . . . . . . . . . Parts Stolen . | . . . . . . . . . Parts Stripped . | . . . . . . . . . Power Chain Reactions . | . . . . . . . . . Alert | -11 -10 -10 -9 -9 -9 -8 -8 -7 ------- Run | Yrd Mat Min Mat Min Exi Min Mat Fac Peak Influence 593 | 10 36 186 593 160 . 30 397 309 Initial 160 | . 6 13 . 160 . . 11 98 Average 152 | 3 17 126 276 160 . 25 151 153 Maximum Alert Level 2 | . . . 2 . . . 1 1 Low Security (%) 69 | 100 100 100 28 100 . 100 52 80 Level 1 26 | . . . 41 . . . 47 19 Level 2 4 | . . . 29 . . . . . Level 3 . | . . . . . . . . . Level 4 . | . . . . . . . . . Level 5 . | . . . . . . . . . High Security . | . . . . . . . . . Max Security . | . . . . . . . . . Squads Dispatched 13 | . . . 2 . . . 3 8 Investigation 2 | . . . 1 . . . 1 . Extermination 3 | . . . . . . . . 3 Reinforcement 5 | . . . 1 . . . 2 2 Assault . | . . . . . . . . . Garrison 3 | . . . . . . . . 3 Intercept . | . . . . . . . . . Searches Triggered . | . . . . . . . . . Construction Impeded 1 | . . . . . . . . 1 Haulers Reinforced . | . . . . . . . . . Active Scanning Responses . | . . . . . . . . . Cargo Convoy Interrupts . | . . . . . . . . . Stealth | -11 -10 -10 -9 -9 -9 -8 -8 -7 --------- Run | Yrd Mat Min Mat Min Exi Min Mat Fac Distress Signals 4 | . . . 2 . . . 1 1 Communications Jammed . | . . . . . . . . . Distress Signals . | . . . . . . . . . Times Spotted 94 | . 5 7 26 . . 1 28 27 Peak Tracking Total 7 | . 4 2 7 . . . 6 5 Tactical Retreats 8 | . . 1 4 . . . 2 1 Traps | -11 -10 -10 -9 -9 -9 -8 -8 -7 ------- Run | Yrd Mat Min Mat Min Exi Min Mat Fac Traps Triggered 1 | . . . . . . . . 1 Indirectly . | . . . . . . . . . Trap Hack Attempts . | . . . . . . . . . Triggered . | . . . . . . . . . Disarmed . | . . . . . . . . . Reprogrammed . | . . . . . . . . . Reused . | . . . . . . . . . Traps Extracted . | . . . . . . . . . Installed . | . . . . . . . . . Triggered . | . . . . . . . . . Machines | -11 -10 -10 -9 -9 -9 -8 -8 -7 ---------- Run | Yrd Mat Min Mat Min Exi Min Mat Fac Machines Disabled 4 | . . . 1 . . . 3 . Max in Single Turn 1 | . . . 1 . . . 1 . Machines Repaired . | . . . . . . . . . Machines Dismantled . | . . . . . . . . . Machines Sabotaged . | . . . . . . . . . Overloaded Fab Kills . | . . . . . . . . . Hacking | -11 -10 -10 -9 -9 -9 -8 -8 -7 --------- Run | Yrd Mat Min Mat Min Exi Min Mat Fac Machines Accessed 16 | . 1 2 3 . 1 . 8 1 Terminals 13 | . 1 1 3 . . . 7 1 Fabricators . | . . . . . . . . . Repair Stations 1 | . . . . . . . 1 . Recycling Units . | . . . . . . . . . Scanalyzers . | . . . . . . . . . Garrison Access . | . . . . . . . . . Total Hacks 42 | . 3 3 9 . 1 . 23 3 Successful 18 | . 1 3 3 . 1 . 9 1 Failed 24 | . 2 . 6 . . . 14 2 Catastrophic 4 | . 2 . . . . . 2 . Database Lockouts . | . . . . . . . . . Manual 25 | . 3 1 6 . 1 . 14 . Terminals 39 | . 3 2 9 . . . 22 3 Fabricators . | . . . . . . . . . Repair Stations 1 | . . . . . . . 1 . Recycling Units . | . . . . . . . . . Scanalyzers . | . . . . . . . . . Garrison Access . | . . . . . . . . . Terminal Hacks 12 | . . 3 2 . 1 . 5 1 Record 2 | . . . . . . . 1 1 Open Door 1 | . . 1 . . . . . . Level Access Points 1 | . . 1 . . . . . . Branch Access Points 1 | . . . 1 . . . . . Emergency Access Points 1 | . . . . . . . 1 . Terminal Index 1 | . . . . . . . 1 . Zone Layout 4 | . . 1 1 . . . 2 . Derelict Proto ID Bank 1 | . . . . . 1 . . . Fabricator Hacks . | . . . . . . . . . Repair Station Hacks . | . . . . . . . . . Recycling Unit Hacks . | . . . . . . . . . Scanalyzer . | . . . . . . . . . Garrison Access Hacks . | . . . . . . . . . Unauthorized Hacks 6 | . 1 . 1 . . . 4 . Terminals 5 | . 1 . 1 . . . 3 . Botnet 5 | . 1 . 1 . . . 3 . Fabricators . | . . . . . . . . . Repair Stations 1 | . . . . . . . 1 . Mechanics 1 | . . . . . . . 1 . Recycling Units . | . . . . . . . . . Scanalyzers . | . . . . . . . . . Garrison Access . | . . . . . . . . . Data Cores Recovered 1 | . . . . . . . 1 . Used 1 | . . . . . . . 1 . Hacking Detections 12 | . 1 . 3 . . . 7 1 Full Trace Events 5 | . 1 . 1 . . . 3 . Feedback Events . | . . . . . . . . . Feedback Blocked . | . . . . . . . . . Robot Schematics Acquired . | . . . . . . . . . Robots Built . | . . . . . . . . . Authchips . | . . . . . . . . . Time . | . . . . . . . . . Total Robot Build Rating . | . . . . . . . . . Part Schematics Acquired . | . . . . . . . . . Parts Built . | . . . . . . . . . Authchips . | . . . . . . . . . Time . | . . . . . . . . . Total Part Build Rating . | . . . . . . . . . Parts Repaired . | . . . . . . . . . Time . | . . . . . . . . . Parts Recycled . | . . . . . . . . . Recycled Matter . | . . . . . . . . . Retrieved Matter . | . . . . . . . . . Retrieved Components . | . . . . . . . . . Parts Scanalyzed . | . . . . . . . . . Part Schematics Acquired . | . . . . . . . . . Parts Damaged . | . . . . . . . . . Bothacking | -11 -10 -10 -9 -9 -9 -8 -8 -7 ------------ Run | Yrd Mat Min Mat Min Exi Min Mat Fac Used RIF Installer . | . . . . . . . . . Robots Hacked . | . . . . . . . . . Non-combat . | . . . . . . . . . Combat . | . . . . . . . . . Robot Hacks Applied . | . . . . . . . . . Relay Couplers Released . | . . . . . . . . . Fabnet Peak Effective % . | . . . . . . . . . Robots Rewired . | . . . . . . . . . Allies Hacked . | . . . . . . . . . Hacks Repelled . | . . . . . . . . . Allies | -11 -10 -10 -9 -9 -9 -8 -8 -7 -------- Run | Yrd Mat Min Mat Min Exi Min Mat Fac Total Allies . | . . . . . . . . . Largest Group . | . . . . . . . . . Highest-Rated Group . | . . . . . . . . . Highest-Rated Ally . | . . . . . . . . . Total Orders . | . . . . . . . . . Ally Attacks . | . . . . . . . . . Total Damage . | . . . . . . . . . Kills . | . . . . . . . . . Allies Corrupted . | . . . . . . . . . Allies Melted . | . . . . . . . . . Intel | -11 -10 -10 -9 -9 -9 -8 -8 -7 ------- Run | Yrd Mat Min Mat Min Exi Min Mat Fac Robot Analysis Total . | . . . . . . . . . Derelict Logs Recovered 1 | . . . . 1 . . . . Drone Launches . | . . . . . . . . . Drone Recoveries . | . . . . . . . . . Exploration | -11 -10 -10 -9 -9 -9 -8 -8 -7 ------------- Run | Yrd Mat Min Mat Min Exi Min Mat Fac Turns Passed 4481 | 119 121 469 566 215 501 201 1382 907 Spaces Moved 1814 | 63 96 227 160 89 207 75 506 391 Core 5 | 5 . . . . . . . . Treads 1445 | . . 194 47 89 207 74 506 328 Legs 356 | 58 96 33 105 . . 1 . 63 Wheels . | . . . . . . . . . Hover . | . . . . . . . . . Flight 8 | . . . 8 . . . . . Fastest Speed 50 | 50 120 160 120 240 240 240 160 162 Average Speed 201 | 133 120 164 231 240 240 241 231 167 Slowest Speed 960 | 200 120 190 960 240 240 330 243 195 Overloaded Moves . | . . . . . . . . . Propulsion Burnouts . | . . . . . . . . . Robots Hopped . | . . . . . . . . . Cave-ins Triggered . | . . . . . . . . . Exploration Rate (%) 31 | 4 30 48 18 32 59 28 51 12 Regions Visited 8 Branch Regions 4 Pre-discovered Areas . | . . . . . . . . . Known Exits Taken 5 | . . 1 1 1 1 1 . . Unknown Exits Taken 3 | 1 1 . . . . . 1 . Scrap Searched 1 | . . . . 1 . . . . Spaces Dug 4 | . . . . . . . 4 . Terrain Destroyed 42 | . . . . . . . 42 . Melee 4 | . . . . . . . 4 . Projectile . | . . . . . . . . . AOE 38 | . . . . . . . 38 . Terrain Rammed . | . . . . . . . . . Walls Destroyed . | . . . . . . . . . Machines Disabled . | . . . . . . . . . Actions | -11 -10 -10 -9 -9 -9 -8 -8 -7 --------- Run | Yrd Mat Min Mat Min Exi Min Mat Fac Total 2296 | 83 98 279 278 92 212 89 628 537 Wait 143 | 1 1 5 42 . 5 9 22 58 Move 1806 | 62 95 226 159 88 206 74 505 391 Hop . | . . . . . . . . . Pick Up 50 | 6 . 6 11 2 1 1 15 8 Fast Attach 24 | 7 . 2 6 . . 1 3 5 Attach 13 | . . . 3 1 . . 4 5 Detach 4 | . . . 1 . . . 1 2 Swap 22 | 1 . 4 6 . . 1 7 3 Drop 37 | . . 7 6 1 . . 15 8 Fire 161 | 6 2 23 39 . . 2 43 46 Melee 17 | . . . . . . . 7 10 Ram . | . . . . . . . . . Kick 2 | . . . 1 . . 1 . . Crush 17 | . . 6 4 . . . 6 1 Escape Stasis . | . . . . . . . . . Rewire . | . . . . . . . . . Trap . | . . . . . . . . . Miscellaneous . | . . . . . . . . . Route ------- -11/Scrapyard -10/Materials -10/Mines (discovered 3 exits: *Mat x2 / [*Sub]) -9/Materials (discovered 3 exits: *Min x2 / *Sto) -9/Mines -9/Exiles -8/Mines -8/Materials -7/Factory History --------- Turn | Location | Event 10 | -11/Scrapyard | Discovered new exit (range 16) 120 | -11/Scrapyard | Entered Materials 201 | -10/Materials | Discovered new exit (range 16) 241 | -10/Materials | Entered Mines 269 | -10/Mines | Discovered new exit (range 15) 269 | -10/Mines | Identified exit to Materials 302 | -10/Mines | Build established: Mutant 549 | -10/Mines | Found a hidden stash of uninstalled traps 568 | -10/Mines | YI-UF0 nonchalantly dropped a Grenade Launcher on the ground 624 | -10/Mines | Met a Derelict who couldn't figure out how to use a Trap Extractor 697 | -10/Mines | Discovered new exit (range 15) 700 | -10/Mines | Received a Rocket Launcher from a helpful Derelict 710 | -10/Mines | Entered Materials 710 | -9/Materials | Evolved 2 slots: Propulsion x1, Utility x1 822 | -9/Materials | Discovered new exit (range 11) 972 | -9/Materials | Identified exit to Storage 1013 | -9/Materials | Identified exit to Mines 1126 | -9/Materials | Destroyed 9 combat bots 1276 | -9/Materials | Entered Mines 1396 | -9/Mines | Learned Materials emergency access door positions 1412 | -9/Mines | Build established: Scavenger-Mutant 1482 | -9/Mines | Deemed a non-threat by the Exiles lab entrance 1482 | -9/Mines | Discovered new exit (range 5) 1489 | -9/Mines | Identified exit to Exiles 1491 | -9/Mines | Entered Exiles 1551 | -9/Exiles | Met 8R-AWN 1592 | -9/Exiles | Met EX-HEX 1655 | -9/Exiles | Met EX-BIN 1688 | -9/Exiles | Aligned with FarCom system 1691 | -9/Exiles | Given EX-Vault access code 1748 | -9/Exiles | Opened EX-Vault 1760 | -9/Exiles | Found 0b10 Alert Chip 1809 | -9/Exiles | Warned to stay clear of 0b10 Research branches 1851 | -9/Exiles | Exiles lab attacked by MAIN.C 1965 | -9/Exiles | Discovered new exit (range 12) 1989 | -9/Exiles | Identified exit to Mines 1992 | -9/Exiles | Left Exiles lab with 0b10 Alert Chip 1992 | -9/Exiles | Entered Mines 2181 | -8/Mines | Discovered new exit (range 6) 2191 | -8/Mines | Identified exit to Materials 2193 | -8/Mines | Entered Materials 2193 | -8/Materials | Evolved 2 slots: Utility x2 2966 | -8/Materials | Build established: Scavenger-Skirmisher 2982 | -8/Materials | Destroyed 12 combat bots 3184 | -8/Materials | Discovered new exit (range 20) 3496 | -8/Materials | Build established: Scavenger-Assassin 3575 | -8/Materials | Entered Factory 3575 | -7/Factory | Evolved 2 slots: Propulsion x1, Utility x1 3973 | -7/Factory | Garrison activated, responded to threat 4482 | -7/Factory | Self-destructed Last Messages --------------- 04374_ Connecting with DSF Access... 04375_ System corrupted: Matter fused (-5). 04378_ K-01 Serf cleans the Nuclear Reactor. 04389_ O-24 Administrator: "IFF HANDSHAKE FAILED. SECURING TERMINAL." 04389_ O-24 Administrator sends out distress signal. 04399_ G-47 Trooper destroyed. 04402_ Acquired 10 matter. 04403_ ALERT: Hostiles spotted, dispatching reinforcements to Terminal F016. 04413_ G-47 Trooper destroyed. 04438_ System corrupted: Flak Gun fused. 04476_ G-47 Trooper destroyed. 04479_ Y-54 Guardian destroyed. 04479_ Switching to secondary target: G-47 Trooper. 04479_ G-47 Trooper destroyed. 04480_ Med. Treads destroyed. 04482_ Power failure, Nuclear Core shutdown. Map ----- +----------------------------------------------------+ | | | | | | | ???????????????????????????????????? | | ???????????????????????????????????? | | ???????????????????????????????????? | | ???????????????????????????????????? | | ???????????????????????????????????? | | ???????????????????????????????????? | | ???????????????????????????????????? | | ???????????????????????????????????? | | ?????????????########??????????????? | | ##??????????? #??????????????? | | ##########? #??????????????? | | #? ???????????????? | | # """ """?????????###????? | | "" "" # """ """????????? #????? | | "" "" =+ """ """???????? #????? | | """ """[%# #?????? #????? | | """ """ !# #?????? #????? | | """ """ ################# ##???? | | o a #???? | | = #???? | | ] [% #???? | | p = #???? | | ### @[!* #???? | | #?######################%%*% #???? | | #???????????????????????!== #???? | | #???????????????????????? #??? | | #???????????????????????? #??? | | #????????????????????????? #??? | | #????????????????????????? #??? | | #?????????????????????????? #??? | | #?????????????????????????? #??? | | ????????????????????????? #??? | | ????????????????????????????###??? | | ?????????????????????????????????? | | ???????????????????????????????? | | ???????????????????????????????? | | ####???????????????????????????????? | | ???????????????????????????????????? | | ???????????????????????????????????? | | ???????????????????????????????????? | | ???????????????????????????????????? | | ???????????????????????????????????? | | ???????????????????????????????????? | | ???????????????????????????????????? | | ???????????????????????????????????? | | ???????????????????????????????????? | | ???????????????????????????????????? | +----------------------------------------------------+ Best States ------------- Heat Dissipation 42 Energy Generation 18 Energy Capacity 275 Matter Stores 300 Matter Capacity 300 Sight Range 20 Terrain Scan Range 16 Terrain Scan Density 10 Armor Coverage 225 Resistance: KI 20 Evasion (%) 55 Targeting Accuracy 8 Recoil Reduction 4 Offensive Hacking 10 Item Schematics ----------------- None Robot Schematics ------------------ None Fabricated ------------ Nothing Alien Tech Used ----------------- None Achievements -------------- None Challenges ------------ None Game ------ Seed HugeHypercooledShield Manual? 0 Play Time 00:40:49 Cumulative 21.6 hours Start 2024.04.27 @ 22:08:13 End 2024.04.27 @ 22:46:53 Sessions 1 Manual Loads 0 Difficulty Rogue Special Mode None Game No. 20 Rogue 18 Adventurer 2 Explorer 0 Win Type - Total 0 Types 0/0/0/0/0/0/0/0/0 Lore% 20 Gallery% 29 Achievement% 26 Wizard Run 0 Options --------- Layout 1 ASCII 0 Keyboard 0 Movement Numpad Keybinds 1 Fullscreen 2 Font 24/Smallcaps Map View 50x35 Zoom Use 0% Tactical HUD 1 Map Filters NONE Filters NONE Steam 1 RUN: 72ab1a92-9987-4e4d-9b10-c6a6eb3599c6